bitfinex/quotes_BTCUSD_20220201
["timestamp","ask_amount","ask_price","bid_price","bid_amount"]
[1643679684215,0.24372727,38348.0,38341.0,0.065209]
[1643679684411,0.24372727,38348.0,38342.0,0.1966751]
[1643679684766,0.24372727,38348.0,38342.0,0.4670762]
[1643679684959,0.24372727,38348.0,38343.0,0.065212]
[1643679686361,0.24372727,38348.0,38344.0,0.06521115]
[1643679686560,0.24372727,38348.0,38344.0,0.13042215]
[1643679686765,0.24372727,38348.0,38345.0,0.05]
[1643679687666,0.24361563,38348.0,38345.0,0.05]
[1643679690917,0.32842029,38353.0,38345.0,0.05]
[1643679691119,0.32842029,38353.0,38347.0,0.06521]
[1643679692258,0.23544006,38349.0,38347.0,0.06521]
[1643679693459,0.23544006,38349.0,38348.0,0.06520955]
[1643679694561,0.23544006,38349.0,38343.0,0.065221]
[1643679694760,0.23544006,38349.0,38342.0,0.00104049]
[1643679694761,0.28734006,38349.0,38342.0,0.00104049]
[1643679694964,0.351063,38348.0,38342.0,0.00104049]
[1643679695260,0.0519,38347.0,38338.0,0.13043365]
[1643679695459,0.351063,38346.0,38338.0,0.13043365]
[1643679695661,0.07823538,38343.0,38342.0,0.00104049]
[1643679695859,0.3073624,38343.0,38342.0,0.00104049]
[1643679696322,0.3073624,38343.0,38338.0,0.13460939]
[1643679696622,0.3073624,38343.0,38341.0,0.00104054]
[1643679697424,0.3073624,38343.0,38339.0,0.78246]
[1643679697622,0.3073624,38343.0,38340.0,0.00104055]
[1643679697825,0.3073624,38343.0,38339.0,0.77850055]
[1643679698024,0.22912702,38343.0,38339.0,0.77850055]
[1643679699632,0.28102702,38343.0,38339.0,0.77850055]
[1643679700665,0.63586672,38343.0,38339.0,0.77350055]
[1643679701863,0.09187327,38342.0,38339.0,0.77350055]
[1643679702063,0.0519,38341.0,38339.0,0.77350055]
[1643679705709,0.0519,38341.0,38339.0,0.77338453]
[1643679705909,0.0519,38341.0,38339.0,0.75719953]
[1643679725268,0.09187327,38342.0,38339.0,0.75719953]
[1643679725671,0.22912702,38343.0,38339.0,0.75719953]
[1643679726117,0.22912702,38343.0,38339.0,0.75459077]
[1643679726717,0.43178507,38342.0,38339.0,0.75459077]
[1643679727117,0.0519,38341.0,38339.0,0.75459077]
[1643679727317,0.065235,38340.0,38339.0,0.75459077]
[1643679729119,0.0519,38341.0,38339.0,0.75459077]
[1643679730565,0.117135,38341.0,38339.0,0.75459077]
[1643679734927,0.0519,38341.0,38339.0,0.75459077]
[1643679738278,1.10159271,38340.0,38339.0,0.75459077]
[1643679738477,0.981913,38340.0,38338.0,0.00103636]
[1643679738686,1.000063,38339.0,38338.0,0.00103636]
[1643679738977,1.051963,38339.0,38338.0,0.00103636]
[1643679739577,0.28142032,38332.0,38330.0,0.33223305]
[1643679739778,0.0519,38331.0,38330.0,0.21043305]
[1643679740077,0.0519,38331.0,38329.0,0.3673]
[1643679752968,0.55607186,38340.0,38329.0,0.3673]
[1643679752969,0.0519,38338.0,38329.0,0.3673]
[1643679753968,0.08657142,38335.0,38329.0,0.432537]
[1643679754170,0.08657142,38335.0,38330.0,0.005503]
[1643679754369,0.08657142,38335.0,38332.0,0.00103653]
[1643679755369,0.08657142,38335.0,38329.0,0.432537]
[1643679755568,0.08657142,38335.0,38332.0,0.00103653]
[1643679755769,0.30182083,38333.0,38332.0,0.00103653]
[1643679756418,0.30182083,38333.0,38329.0,0.3673]
[1643679756718,0.30182083,38333.0,38331.0,0.00103656]
[1643679757718,0.30182083,38333.0,38329.0,0.3673]
[1643679757920,0.30182083,38333.0,38330.0,0.005502]
[1643679758121,0.30182083,38333.0,38330.0,0.00653857]
[1643679759021,0.30182083,38333.0,38330.0,0.005502]
[1643679759221,0.30182083,38333.0,38330.0,0.00653859]
[1643679760087,0.30182083,38333.0,38330.0,0.005502]
[1643679760289,0.30182083,38333.0,38330.0,0.00653859]
[1643679760889,0.30172101,38333.0,38330.0,0.00653859]
[1643679761388,0.30172101,38333.0,38330.0,0.005502]
[1643679761689,0.30172101,38333.0,38330.0,0.00653859]
[1643679762090,0.30172101,38333.0,38331.0,0.005502]
[1643679762294,0.30172101,38333.0,38330.0,0.00103659]
[1643679762489,0.30172101,38333.0,38329.0,0.3673]
[1643679762490,0.0519,38332.0,38329.0,0.3673]
[1643679762888,0.0519,38332.0,38330.0,0.00103657]
[1643679763718,0.0519,38332.0,38329.0,0.3673]
[1643679763918,0.0519,38332.0,38329.0,0.3683366]
[1643679764119,0.117151,38332.0,38329.0,0.3683366]
[1643679764922,0.117151,38332.0,38329.0,0.3673]
[1643679765120,0.117151,38332.0,38329.0,0.36833661]
[1643679766122,0.117151,38332.0,38329.0,0.3673]
[1643679766423,0.117151,38332.0,38329.0,0.36833661]
[1643679767273,0.117151,38332.0,38329.0,0.3673]
[1643679767470,0.117151,38332.0,38329.0,0.36833661]
[1643679769669,0.117151,38332.0,38329.0,0.3673]
[1643679770073,0.117151,38332.0,38329.0,0.36833661]
[1643679772119,0.117151,38332.0,38329.0,0.3673]
[1643679772320,0.117151,38332.0,38329.0,0.36833661]
[1643679773322,0.117151,38332.0,38329.0,0.3673]
[1643679773522,0.117151,38332.0,38329.0,0.36833661]
[1643679774523,0.117151,38332.0,38329.0,0.3673]
[1643679774773,0.117151,38332.0,38329.0,0.36833661]
[1643679775764,0.117151,38332.0,38329.0,0.3673]
[1643679775965,0.117151,38332.0,38329.0,0.36833661]
[1643679776968,0.117151,38332.0,38329.0,0.3673]
[1643679777166,0.117151,38332.0,38329.0,0.36833661]
[1643679778168,0.117151,38332.0,38329.0,0.3673]
[1643679778368,0.117151,38332.0,38329.0,0.36833661]
[1643679779416,0.117151,38332.0,38329.0,0.3673]
[1643679779615,0.117151,38332.0,38329.0,0.36833661]
[1643679780215,0.117151,38332.0,38329.0,0.36510139]
[1643679780621,0.117151,38332.0,38329.0,0.36406478]
[1643679780818,0.117151,38332.0,38329.0,0.36510139]
[1643679781817,0.117151,38332.0,38329.0,0.36406478]
[1643679782017,0.117151,38332.0,38329.0,0.36510139]
[1643679782670,0.117151,38332.0,38329.0,0.00103661]
[1643679783070,0.117151,38332.0,38326.0,0.02144903]
[1643679783274,0.117151,38332.0,38329.0,0.00103661]
[1643679785474,0.117151,38332.0,38325.0,4.0]
[1643679785674,0.117151,38332.0,38329.0,0.00103661]
[1643679786621,0.27991061,38327.0,38325.0,4.0]
[1643679793520,0.0519,38332.0,38325.0,4.0]
[1643679794521,0.0519,38332.0,38325.0,4.065252]
[1643679794722,0.3124503,38331.0,38325.0,4.065252]
[1643679795125,0.3124503,38331.0,38327.0,0.00103667]
[1643679796123,0.3124503,38331.0,38325.0,4.065252]
[1643679796425,0.3124503,38331.0,38327.0,0.00103665]
[1643679797467,0.3124503,38331.0,38325.0,4.065252]
[1643679797667,0.3124503,38331.0,38327.0,0.00103665]
[1643679798666,0.3124503,38331.0,38325.0,4.065252]
[1643679798970,0.3124503,38331.0,38327.0,0.00103665]
[1643679799766,0.3124503,38331.0,38325.0,4.065252]
[1643679799967,0.3124503,38331.0,38327.0,0.00103665]
[1643679800366,0.3124503,38331.0,38327.0,0.0007384]
[1643679800767,0.3074503,38331.0,38327.0,0.0007384]
[1643679801018,0.3074503,38331.0,38325.0,4.0]
[1643679802019,0.3727073,38331.0,38325.0,4.0]
[1643679802218,0.0519,38330.0,38325.0,4.0]
[1643679802419,0.05158599,38330.0,38325.0,4.00051872]
[1643679803418,0.05158599,38330.0,38325.0,4.0]
[1643679803619,0.05158599,38330.0,38325.0,4.0010367]
[1643679804523,0.649,38326.0,38325.0,4.0010367]
[1643679804778,1.051963,38326.0,38325.0,4.0]
[1643679804972,1.051963,38326.0,38325.0,4.01951783]
[1643679805772,1.051963,38326.0,38325.0,3.99993255]
[1643679806372,1.117229,38326.0,38325.0,3.99993255]
[1643679817428,1.117229,38326.0,38325.0,3.26749172]
[1643679821071,1.44629231,38326.0,38325.0,3.26749172]
[1643679821271,1.62207416,38326.0,38325.0,3.26749172]
[1643679821873,1.72207416,38326.0,38325.0,3.26749172]
[1643679822472,1.39301085,38326.0,38325.0,3.26749172]
[1643679822875,1.72185922,38326.0,38325.0,3.26749172]
[1643679825518,1.82185922,38326.0,38325.0,3.26749172]
[1643679825720,1.49301085,38326.0,38325.0,3.26749172]
[1643679825917,1.82184599,38326.0,38325.0,3.26749172]
[1643679827119,1.49301085,38326.0,38325.0,3.26749172]
[1643679827368,1.82182284,38326.0,38325.0,3.26749172]
[1643679827571,1.82182233,38326.0,38325.0,3.26749172]
[1643679828567,1.72182233,38326.0,38325.0,3.26749172]
[1643679828968,1.39301085,38326.0,38325.0,3.26749172]
[1643679829469,1.72182233,38326.0,38325.0,3.26749172]
[1643679829669,1.39301085,38326.0,38325.0,3.26749172]
[1643679830271,1.44301085,38326.0,38325.0,3.26749172]
[1643679830672,1.77182233,38326.0,38325.0,3.26749172]
[1643679830873,1.82182233,38326.0,38325.0,3.26749172]
[1643679832223,1.72182233,38326.0,38325.0,3.26749172]
[1643679832425,1.39301085,38326.0,38325.0,3.26749172]
[1643679832823,1.29301085,38326.0,38325.0,3.26749172]
[1643679834226,1.44301085,38326.0,38325.0,3.26749172]
[1643679834878,1.49301085,38326.0,38325.0,3.26749172]
[1643679836473,1.44301085,38326.0,38325.0,3.26749172]
[1643679836674,0.64401085,38326.0,38325.0,3.26749172]
[1643679836876,0.416329,38326.0,38325.0,3.26749172]
[1643679837073,0.351063,38326.0,38325.0,3.26749172]
[1643679837272,0.351063,38327.0,38325.0,3.26749172]
[1643679837479,0.351063,38328.0,38325.0,3.26749172]
[1643679838374,0.06526,38326.0,38325.0,3.26749172]
[1643679838621,0.416323,38326.0,38325.0,3.26852722]
[1643679839422,0.416323,38326.0,38325.0,3.26749172]
[1643679840626,0.416323,38326.0,38325.0,2.53496259]
[1643679840824,0.61970911,38326.0,38325.0,2.53496259]
[1643679841023,0.72160911,38326.0,38325.0,2.53496259]
[1643679841225,0.87160911,38326.0,38325.0,2.53496259]
[1643679841424,1.04738415,38326.0,38325.0,2.53496259]
[1643679841622,1.20042059,38326.0,38325.0,2.53496259]
[1643679841822,1.04738415,38326.0,38325.0,2.53496259]
[1643679847130,1.43129135,38326.0,38325.0,2.53496259]
[1643679848235,0.99738415,38326.0,38325.0,2.53496259]
[1643679848631,1.38129135,38326.0,38325.0,2.53496259]
[1643679851873,1.33129135,38326.0,38325.0,2.53496259]
[1643679852673,1.38129135,38326.0,38325.0,2.53496259]
[1643679855120,1.59684317,38326.0,38325.0,2.53496259]
[1643679855522,1.54684317,38326.0,38325.0,2.53496259]
[1643679855928,1.39684317,38326.0,38325.0,2.53496259]
[1643679856124,1.23119428,38326.0,38325.0,2.53496259]
[1643679856625,1.02780817,38326.0,38325.0,2.53496259]
[1643679857868,1.12780817,38326.0,38325.0,2.53496259]
[1643679859070,1.34345951,38326.0,38325.0,2.53496259]
[1643679860271,1.39345951,38326.0,38325.0,2.49571993]
[1643679860671,1.39345951,38326.0,38325.0,1.76310583]
[1643679862718,1.29345951,38326.0,38325.0,1.76310583]
[1643679862919,1.29345951,38326.0,38325.0,1.72094242]
[1643679863119,0.74399804,38326.0,38325.0,1.72094242]
[1643679863721,0.568223,38326.0,38325.0,1.72094242]
[1643679864970,0.468223,38326.0,38325.0,1.72094242]
[1643679865172,0.85206784,38326.0,38325.0,1.72094242]
[1643679865371,0.9404977,38326.0,38325.0,1.72094242]
[1643679865571,0.94038217,38326.0,38325.0,1.72094242]
[1643679865774,0.468223,38326.0,38325.0,1.72094242]
[1643679865975,0.85191895,38326.0,38325.0,1.72094242]
[1643679866175,0.78665895,38326.0,38325.0,1.72094242]
[1643679866375,0.78665895,38326.0,38325.0,1.71594242]
[1643679866774,0.351063,38326.0,38325.0,1.71594242]
[1643679868374,0.32890416,38327.0,38325.0,1.71594242]
[1643679868624,0.17577504,38328.0,38325.0,1.71594242]
[1643679868625,0.5046792,38328.0,38325.0,1.71594242]
[1643679868823,0.351063,38327.0,38325.0,1.71594242]
[1643679870026,6.093e-05,38327.0,38325.0,1.71594242]
[1643679876428,6.093e-05,38327.0,38326.0,0.9099167]
[1643679876634,6.093e-05,38327.0,38326.0,0.705512]
[1643679878225,6.093e-05,38327.0,38326.0,0.005512]
[1643679878427,6.093e-05,38327.0,38326.0,0.070759]
[1643679878828,6.093e-05,38327.0,38326.0,0.005512]
[1643679879774,6.093e-05,38327.0,38326.0,0.255512]
[1643679880868,6.093e-05,38327.0,38326.0,0.005512]
[1643679884622,6.093e-05,38327.0,38325.0,1.78222452]
[1643679885124,6.093e-05,38327.0,38325.0,1.71697852]
[1643679885523,6.093e-05,38327.0,38325.0,1.71594242]
[1643679885725,0.0519,38326.0,38325.0,1.71594242]
[1643679886128,0.28602205,38326.0,38325.0,1.71594242]
[1643679889283,0.68681585,38326.0,38325.0,1.71594242]
[1643679889489,1.03787885,38326.0,38325.0,1.71594242]
[1643679892634,0.63708505,38326.0,38325.0,1.71594242]
[1643679895373,0.84384076,38326.0,38325.0,1.71594242]
[1643679901530,0.84320379,38326.0,38325.0,1.71594242]
[1643679903171,0.84342079,38326.0,38325.0,1.71594242]
[1643679903372,0.402963,38326.0,38325.0,1.71594242]
[1643679905475,0.60974887,38326.0,38325.0,1.71594242]
[1643679906326,0.402963,38326.0,38325.0,1.71594242]
[1643679906926,0.60948042,38326.0,38325.0,1.71594242]
[1643679909029,0.402963,38326.0,38325.0,1.71594242]
[1643679909229,0.402963,38326.0,38325.0,1.74828008]
[1643679909876,0.61134128,38326.0,38325.0,1.74828008]
[1643679910378,0.402963,38326.0,38325.0,1.74828008]
[1643679911578,0.60895958,38326.0,38325.0,1.73828008]
[1643679911777,0.402963,38326.0,38325.0,1.73828008]
[1643679912178,0.61008549,38326.0,38325.0,1.73828008]
[1643679912377,0.402963,38326.0,38325.0,1.73828008]
[1643679914827,0.402963,38326.0,38325.0,1.73328008]
[1643679922231,0.351063,38326.0,38325.0,1.73328008]
[1643679922433,6.093e-05,38327.0,38326.0,0.55146707]
[1643679922629,6.093e-05,38327.0,38326.0,0.25146707]
[1643679923027,6.093e-05,38327.0,38326.0,0.28380473]
[1643679930932,6.093e-05,38327.0,38326.0,0.03233766]
[1643679933880,6.093e-05,38327.0,38326.0,0.11835969]
[1643679935080,6.093e-05,38327.0,38326.0,0.03233766]
[1643679938230,0.27576901,38327.0,38326.0,0.03233766]
[1643679938432,0.58098399,38327.0,38326.0,0.03233766]
[1643679938630,0.93204699,38327.0,38326.0,0.03233766]
[1643679939429,0.99730499,38327.0,38326.0,0.03233766]
[1643679940987,0.46828193,38327.0,38326.0,0.03233766]
[1643679941986,0.77707418,38327.0,38326.0,0.03233766]
[1643679942883,0.98438118,38327.0,38326.0,0.03233766]
[1643679946731,0.77707418,38327.0,38326.0,0.03233766]
[1643679948779,0.99512503,38327.0,38326.0,0.03233766]
[1643679949182,0.38366187,38332.0,38327.0,0.7]
[1643679949385,0.41228759,38338.0,38327.0,0.77077734]
[1643679949386,0.32883449,38333.0,38327.0,0.77077734]
[1643679949580,0.38366187,38335.0,38327.0,0.77077734]
[1643679949581,0.32883449,38335.0,38327.0,0.77077734]
[1643679949779,0.32883449,38336.0,38331.0,0.03233766]
[1643679950180,0.23843355,38332.0,38331.0,0.03233766]
[1643679950780,0.33114027,38332.0,38331.0,0.03233766]
[1643679951028,0.33114027,38332.0,38325.0,1.70094242]
[1643679951029,0.38304027,38332.0,38325.0,1.70094242]
[1643679951230,0.45107,38331.0,38325.0,1.70611983]
[1643679951436,0.0519,38330.0,38325.0,1.70611983]
[1643679951630,0.35107,38329.0,38325.0,1.70611983]
[1643679951833,0.23632022,38326.0,38325.0,1.70508435]
[1643679952030,0.28822022,38326.0,38325.0,1.70094242]
[1643679952231,0.33822022,38326.0,38325.0,1.7019779]
[1643679953033,0.33822022,38326.0,38325.0,1.70094242]
[1643679956789,0.0519,38326.0,38325.0,1.70094242]
[1643679956993,0.05095324,38326.0,38325.0,1.70094242]
[1643679958726,0.40202324,38326.0,38325.0,1.70094242]
[1643679958925,0.45202324,38326.0,38325.0,1.70094242]
[1643679959127,0.40202324,38326.0,38325.0,1.70094242]
[1643679960529,0.45202324,38326.0,38325.0,1.70094242]
[1643679961328,0.55202324,38326.0,38325.0,1.70094242]
[1643679962782,0.55156148,38326.0,38325.0,1.70094242]
[1643679962979,0.4514156,38326.0,38325.0,1.70094242]
[1643679963779,0.40202324,38326.0,38325.0,1.70094242]
[1643679964579,0.40202324,38326.0,38325.0,1.69594242]
[1643679968127,0.45202324,38326.0,38325.0,1.69594242]
[1643679972785,0.55202324,38326.0,38325.0,1.69594242]
[1643679975030,0.76153962,38326.0,38325.0,1.69594242]
[1643679979282,0.76153962,38326.0,38325.0,0.96344924]
[1643679979482,0.76153962,38326.0,38324.0,0.00100866]
[1643679979683,0.76153962,38326.0,38323.0,0.0011]
[1643679979684,1.0853579,38325.0,38323.0,0.0011]
[1643679979984,0.76267762,38324.0,38323.0,0.0011]
[1643679980183,0.81267762,38324.0,38323.0,0.0011]
[1643679980385,0.65109352,38324.0,38323.0,0.0011]
[1643679982633,0.90065571,38324.0,38323.0,0.0011]
[1643679983434,0.65109352,38324.0,38323.0,0.0011]
[1643679984635,1.30009352,38324.0,38323.0,0.0011]
[1643679985287,1.30009352,38324.0,38321.0,0.0011]
[1643679985288,0.35,38323.0,38321.0,0.0011]
[1643679985488,1.117252,38322.0,38321.0,0.0011]
[1643679985692,1.217252,38322.0,38321.0,0.0011]
[1643679985988,0.13056889,38321.0,38310.0,0.1244]
[1643679986189,0.7009,38320.0,38310.0,0.1244]
[1643679986387,0.31340693,38313.0,38310.0,0.1244]
[1643679986588,0.0519,38312.0,38309.0,0.0122]
[1643679986987,0.0519,38312.0,38311.0,0.0011]
[1643679989240,0.26555589,38312.0,38311.0,0.0011]
[1643679989639,0.61662589,38312.0,38311.0,0.0011]
[1643679993583,0.40297,38312.0,38311.0,0.0011]
[1643679993986,0.0519,38312.0,38311.0,0.0011]
[1643679997142,0.27448461,38312.0,38311.0,0.0011]
[1643679997340,0.62555461,38312.0,38311.0,0.0011]
[1643679998141,0.40297,38312.0,38311.0,0.0011]
[1643679999141,0.0519,38312.0,38311.0,0.0011]
[1643680000082,0.26655437,38312.0,38311.0,0.0011]
[1643680000483,0.7,38310.0,38299.0,0.002]
[1643680000685,0.7,38310.0,38290.0,0.60939209]
[1643680000686,0.649,38300.0,38290.0,0.60939209]
[1643680000884,0.35580608,38309.0,38291.0,0.76322731]
[1643680000885,0.649,38296.0,38291.0,0.76322731]
[1643680001193,0.649,38292.0,38291.0,0.27924476]
[1643680001382,0.8901309,38292.0,38291.0,0.27924476]
[1643680001589,0.8901309,38292.0,38279.0,0.364]
[1643680001590,0.06532957,38289.0,38279.0,0.364]
[1643680001786,0.06532957,38289.0,38269.0,0.06957818]
[1643680001787,0.649,38284.0,38269.0,0.33066429]
[1643680001983,1.63118687,38284.0,38269.0,0.33066429]
[1643680002182,1.73118687,38284.0,38283.0,0.00235911]
[1643680002585,1.63118687,38284.0,38283.0,0.00235911]
[1643680002786,1.47197,38284.0,38283.0,0.00235911]
[1643680003636,0.55,38283.0,38272.0,0.0022]
[1643680003941,0.55,38283.0,38266.0,1.23498536]
[1643680003942,1.08007093,38281.0,38266.0,0.36033916]
[1643680004136,0.0519,38280.0,38266.0,0.36033916]
[1643680004538,0.23200588,38278.0,38267.0,0.24376132]
[1643680004735,0.0519,38277.0,38272.0,0.0011]
[1643680004935,0.08245812,38275.0,38272.0,0.0011]
[1643680005136,0.23200588,38278.0,38272.0,0.0011]
[1643680005335,0.23200588,38278.0,38276.0,0.00495298]
[1643680005336,0.40297,38277.0,38276.0,0.00495298]
[1643680007398,0.40297,38277.0,38272.0,0.0011]
[1643680007596,0.005,38276.0,38274.0,0.00047904]
[1643680007801,0.35107,38275.0,38274.0,0.00047904]
[1643680008397,0.59501554,38275.0,38274.0,0.00047904]
[1643680008599,0.59501554,38275.0,38265.0,0.00191663]
[1643680008600,0.065358,38272.0,38265.0,0.00191663]
[1643680008799,0.065358,38272.0,38257.0,0.5567]
[1643680008800,2.45641968,38270.0,38244.0,3.33654295]
[1643680009006,2.45641968,38270.0,38243.0,0.33038536]
[1643680009007,0.649,38266.0,38245.0,0.78417]
[1643680009198,0.4137189,38251.0,38245.0,0.78417]
[1643680009399,0.26038784,38250.0,38245.0,0.78417]
[1643680009598,0.7,38247.0,38244.0,0.02047594]
[1643680009801,0.45,38244.0,38235.0,6.74656922]
[1643680010000,0.2,38236.0,38235.0,5.27337742]
[1643680010199,0.68975087,38236.0,38235.0,5.22337742]
[1643680010400,1.08258005,38236.0,38235.0,2.46347236]
[1643680010602,1.93870451,38236.0,38235.0,2.46347236]
[1643680010798,1.93870451,38236.0,38222.0,0.0287]
[1643680010799,2.09691783,38224.0,38222.0,0.0287]
[1643680011057,1.72498292,38224.0,38223.0,0.2]
[1643680011254,0.01,38226.0,38223.0,0.2]
[1643680011450,0.01,38226.0,38225.0,0.1]
[1643680011451,0.0619,38226.0,38225.0,0.1]
[1643680011659,0.0519,38226.0,38225.0,0.195]
[1643680011848,0.0508,38226.0,38225.0,0.195]
[1643680012350,0.0508,38226.0,38225.0,0.44737988]
[1643680012549,0.0508,38226.0,38225.0,0.19]
[1643680012550,0.0486,38226.0,38225.0,0.19]
[1643680012751,0.41096202,38235.0,38232.0,0.09927]
[1643680012752,0.17619778,38235.0,38232.0,0.09927]
[1643680012950,0.32486123,38242.0,38233.0,0.6]
[1643680012951,0.17619778,38234.0,38233.0,0.6]
[1643680013152,0.0519,38234.0,38233.0,1.03394554]
[1643680013349,0.17619778,38241.0,38234.0,0.31105352]
[1643680013553,0.35107,38240.0,38222.0,0.10010299]
[1643680013749,0.02047594,38245.0,38239.0,0.19]
[1643680013948,0.02047594,38245.0,38244.0,0.19]
[1643680014256,0.37154594,38245.0,38244.0,0.19]
[1643680014449,0.02047594,38245.0,38244.0,0.19]
[1643680016093,0.0519,38251.0,38244.0,0.19]
[1643680016293,0.0519,38251.0,38250.0,0.1]
[1643680016493,0.24878869,38252.0,38250.0,0.1]
[1643680016694,0.35107,38251.0,38250.0,0.1]
[1643680016898,0.35107,38251.0,38250.0,0.19]
[1643680017096,0.18500191,38253.0,38250.0,0.1]
[1643680017294,0.23500191,38253.0,38252.0,0.19]
[1643680017495,0.23500191,38253.0,38252.0,0.1]
[1643680017496,0.40107,38253.0,38252.0,0.1]
[1643680017897,0.50107,38253.0,38252.0,0.1]
[1643680018534,0.50107,38253.0,38252.0,0.10167072]
[1643680018736,0.194329,38253.0,38252.0,0.89167072]
[1643680018937,0.17619778,38259.0,38252.0,0.89167072]
[1643680018938,0.005,38254.0,38252.0,0.94357072]
[1643680019137,0.5,38265.0,38253.0,1.41844276]
[1643680019138,0.005,38258.0,38253.0,1.41844276]
[1643680019337,0.23460096,38269.0,38253.0,1.41844276]
[1643680019338,0.005,38264.0,38258.0,0.07653141]
[1643680019541,0.005,38270.0,38261.0,0.89]
[1643680019736,0.005,38270.0,38261.0,0.593129]
[1643680019737,0.00148952,38267.0,38261.0,0.593129]
[1643680019935,0.02141841,38266.0,38261.0,0.593129]
[1643680020133,0.02141841,38266.0,38265.0,0.62879458]
[1643680020336,0.02141841,38266.0,38265.0,0.63879458]
[1643680021335,0.26625017,38266.0,38265.0,0.01]
[1643680021732,0.02141841,38266.0,38265.0,0.01]
[1643680021933,0.00148952,38267.0,38265.0,0.01]
[1643680022789,0.00298044,38267.0,38265.0,0.01]
[1643680022994,0.00298044,38267.0,38263.0,0.00091599]
[1643680022995,1.001229,38266.0,38263.0,0.00091599]
[1643680023195,0.991963,38264.0,38263.0,0.00091599]
[1643680023392,1.143863,38264.0,38263.0,0.00091599]
[1643680023590,1.193863,38264.0,38263.0,0.00091599]
[1643680024994,0.45,38263.0,38258.0,0.00591599]
[1643680025193,0.351229,38259.0,38254.0,0.00157356]
[1643680025394,0.25915718,38261.0,38258.0,0.00091599]
[1643680025595,0.351229,38259.0,38258.0,0.00091599]
[1643680026032,0.351229,38259.0,38256.0,0.00091599]
[1643680026033,0.403129,38259.0,38256.0,0.00091599]
[1643680026233,0.25493149,38258.0,38256.0,0.00091599]
[1643680026434,0.394863,38257.0,38256.0,0.00091599]
[1643680027232,0.394863,38257.0,38254.0,0.00366487]
[1643680027439,0.394863,38257.0,38250.0,0.31255784]
[1643680027440,0.394863,38257.0,38253.0,0.00091599]
[1643680027633,0.29209581,38254.0,38253.0,0.00091599]
[1643680027836,0.63832881,38254.0,38244.0,0.01826839]
[1643680028038,0.27071141,38253.0,38245.0,0.78533599]
[1643680028236,0.0519,38252.0,38245.0,0.78033599]
[1643680028437,0.27322646,38251.0,38245.0,0.78033599]
[1643680028636,0.0519,38250.0,38245.0,0.78033599]
[1643680028836,0.25907095,38247.0,38245.0,0.78033599]
[1643680029034,0.1519,38250.0,38245.0,0.78033599]
[1643680029035,0.0519,38246.0,38245.0,0.78033599]
[1643680030092,0.0469,38246.0,38245.0,0.78033599]
[1643680030888,0.04660788,38246.0,38245.0,0.78033599]
[1643680031087,0.04660788,38246.0,38245.0,0.77533599]
[1643680033390,0.04660788,38246.0,38245.0,0.77442]
[1643680033641,0.31634024,38246.0,38245.0,0.77442]
[1643680033839,0.04660788,38246.0,38245.0,0.77442]
[1643680034042,0.39532611,38246.0,38245.0,0.77442]
[1643680034240,0.89653111,38246.0,38245.0,0.77442]
[1643680034642,1.59553111,38246.0,38245.0,0.77442]
[1643680035040,1.59553111,38246.0,38238.0,0.0057262]
[1643680035244,0.387991,38242.0,38238.0,0.0057262]
[1643680035441,0.57978807,38239.0,38238.0,0.0057262]
[1643680035642,0.90018062,38239.0,38238.0,0.0057262]
[1643680035843,1.05018062,38239.0,38238.0,0.0057262]
[1643680036045,1.09736884,38239.0,38238.0,0.0057262]
[1643680036445,1.75064495,38239.0,38238.0,0.0011]
[1643680036844,1.48068807,38239.0,38238.0,0.0011]
[1643680044243,1.48068807,38239.0,38231.0,0.00188363]
[1643680044244,0.7,38238.0,38231.0,0.00188363]
[1643680044446,0.337991,38234.0,38231.0,0.00188363]
[1643680044646,0.337991,38234.0,38229.0,0.0011]
[1643680044647,0.25303773,38232.0,38229.0,0.0011]
[1643680044888,0.986991,38230.0,38229.0,0.0011]
[1643680045086,1.088891,38230.0,38229.0,0.0011]
[1643680045988,1.188891,38230.0,38229.0,0.0011]
[1643680046188,1.188891,38230.0,38229.0,0.00201599]
[1643680046189,1.088891,38230.0,38229.0,0.00201599]
[1643680046690,0.7009,38230.0,38229.0,0.00201599]
[1643680047089,0.0519,38230.0,38229.0,0.00201599]
[1643680049035,0.0519,38230.0,38229.0,0.0011]
[1643680049837,0.0519,38230.0,38229.0,0.00201599]
[1643680050238,0.0519,38230.0,38229.0,0.00181599]
[1643680051040,0.0519,38230.0,38225.0,0.07238708]
[1643680051239,0.0519,38230.0,38221.0,0.30883895]
[1643680052298,0.0519,38230.0,38223.0,0.2993216]
[1643680052893,0.0519,38230.0,38223.0,0.09084729]
[1643680053095,0.0519,38230.0,38221.0,0.0011]
[1643680053296,0.0519,38230.0,38225.0,0.0005673]
[1643680053494,0.0519,38230.0,38215.0,1.97672438]
[1643680053695,0.3195249,38230.0,38215.0,1.97672438]
[1643680053893,0.3695249,38230.0,38215.0,1.99580608]
[1643680054093,0.26057033,38226.0,38222.0,0.36649097]
[1643680054294,0.0519,38225.0,38222.0,0.36649097]
[1643680054495,0.065427,38236.0,38222.0,0.36649097]
[1643680054496,0.07230765,38239.0,38231.0,0.27488145]
[1643680054694,0.07230765,38239.0,38231.0,0.24988145]
[1643680054893,0.2676249,38238.0,38224.0,0.1191]
[1643680055094,0.2676249,38238.0,38225.0,0.05]
[1643680055494,0.25539162,38234.0,38228.0,0.33423523]
[1643680056138,0.00091602,38233.0,38228.0,0.33423523]
[1643680056338,0.00091602,38233.0,38229.0,0.08856612]
[1643680056739,0.0519,38239.0,38229.0,0.08856612]
[1643680056939,0.00091602,38233.0,38229.0,0.08856612]
[1643680057240,0.25028982,38238.0,38228.0,0.33423523]
[1643680057442,0.0519,38239.0,38228.0,0.33423523]
[1643680058139,0.0519,38239.0,38231.0,0.28333846]
[1643680058339,0.21997177,38235.0,38228.0,0.33423523]
[1643680058739,0.21997177,38235.0,38228.0,0.32923523]
[1643680059440,0.21997177,38235.0,38225.0,0.05]
[1643680059441,0.2208889,38235.0,38225.0,0.05]
[1643680059643,0.0519,38234.0,38225.0,0.05]
[1643680059889,0.0519,38234.0,38224.0,0.25000643]
[1643680060391,0.0519,38234.0,38227.0,0.33008765]
[1643680060788,0.0519,38234.0,38227.0,0.42338627]
[1643680061589,0.0519,38234.0,38227.0,0.33008765]
[1643680061790,0.0519,38234.0,38228.0,0.4891]
[1643680062792,0.29254827,38240.0,38228.0,0.4891]
[1643680062992,0.05,38241.0,38235.0,0.09240361]
[1643680062993,0.3165395,38241.0,38235.0,0.09240361]
[1643680063639,0.53244082,38241.0,38235.0,0.09240361]